[Event "Titled Tuesday Blitz March 15 Late 2022"]
[White "Lazavik, Denis"]
[Black "Pichot, Alan"]
[WhiteFideId "13515110"]
[BlackFideId "110973"]
[WhiteElo "2437"]
[BlackElo "2579"]
[Result "1-0"]
[Round "11"]
[TimeControl "180+1"]
[Date "2022.03.15"]
[WhiteClock "0:00:06"]
[BlackClock "0:00:07"]

1. d4 {[%clk 0:03:00]}  Nf6 {[%clk 0:02:59]} 2. c4 {[%clk 0:03:01]}  e6 {[%clk 0:02:59]} 3. Nf3 {[%clk 0:03:01]}  d5 {[%clk 0:02:59]} 4. g3 {[%clk 0:03:02]}  Be7 {[%clk 0:02:59]} 5. Bg2 {[%clk 0:03:02]}  O-O {[%clk 0:02:59]} 6. O-O {[%clk 0:03:03]}  dxc4 {[%clk 0:03:00]} 7. Qc2 {[%clk 0:03:03]}  a6 {[%clk 0:03:00]} 8. a4 {[%clk 0:03:03]}  c5 {[%clk 0:03:00]} 9. dxc5 {[%clk 0:02:37]}  Bxc5 {[%clk 0:03:01]} 10. Qxc4 {[%clk 0:02:37]}  b6 {[%clk 0:02:59]} 11. Ne5 {[%clk 0:02:35]}  Ra7 {[%clk 0:02:52]} 12. Nc3 {[%clk 0:02:30]}  Bb7 {[%clk 0:02:49]} 13. Nd3 {[%clk 0:02:26]}  Bd6 {[%clk 0:02:45]} 14. Rd1 {[%clk 0:02:19]}  Qe7 {[%clk 0:02:36]} 15. Bxb7 {[%clk 0:02:12]}  Rxb7 {[%clk 0:02:35]} 16. Bg5 {[%clk 0:02:12]}  Rd8 {[%clk 0:02:22]} 17. Ne4 {[%clk 0:02:08]}  Rbd7 {[%clk 0:02:18]} 18. Rac1 {[%clk 0:01:56]}  Be5 {[%clk 0:01:45]} 19. Qb3 {[%clk 0:01:37]}  Bd4 {[%clk 0:01:39]} 20. e3 {[%clk 0:01:25]}  h6 {[%clk 0:01:39]} 21. Bxf6 {[%clk 0:00:53]}  Bxf6 {[%clk 0:01:39]} 22. Qxb6 {[%clk 0:00:53]}  Rb7 {[%clk 0:01:20]} 23. Nxf6+ {[%clk 0:00:43]}  gxf6 {[%clk 0:01:20]} 24. Qa5 {[%clk 0:00:32]}  Rbd7 {[%clk 0:01:18]} 25. Rc3 {[%clk 0:00:30]}  Rd5 {[%clk 0:01:15]} 26. Qb6 {[%clk 0:00:17]}  Nd7 {[%clk 0:01:13]} 27. Qc7 {[%clk 0:00:18]}  Qf8 {[%clk 0:01:07]} 28. Rdc1 {[%clk 0:00:17]}  Rb8 {[%clk 0:00:56]} 29. Nf4 {[%clk 0:00:17]}  Rd2 {[%clk 0:00:56]} 30. R3c2 {[%clk 0:00:15]}  Rxc2 {[%clk 0:00:50]} 31. Rxc2 {[%clk 0:00:16]}  Ne5 {[%clk 0:00:50]} 32. Nh5 {[%clk 0:00:17]}  Nf3+ {[%clk 0:00:28]} 33. Kh1 {[%clk 0:00:14]}  Rd8 {[%clk 0:00:25]} 34. Nxf6+ {[%clk 0:00:12]}  Kg7 {[%clk 0:00:26]} 35. Nh5+ {[%clk 0:00:13]}  Kh7 {[%clk 0:00:25]} 36. Rc1 {[%clk 0:00:12]}  Rd2 {[%clk 0:00:21]} 37. Kg2 {[%clk 0:00:11]}  Ng5 {[%clk 0:00:21]} 38. Qc6 {[%clk 0:00:07]}  Qd8 {[%clk 0:00:18]} 39. h4 {[%clk 0:00:06]}  Rxf2+ {[%clk 0:00:06]} 40. Kxf2 {[%clk 0:00:06]}  Qd2+ {[%clk 0:00:07]} 41. Kf1 {[%clk 0:00:06]}  Nh3 {[%clk 0:00:07]} 42. Qc2+ {[%clk 0:00:06]} 1-0


[Site "https://www.chess.com"]

[Event "Titled Tuesday Blitz March 15 Late 2022"]
[White "Lock, Gavin R"]
[Black "Jarocka, Liwia"]
[WhiteFideId "408646"]
[BlackFideId "21807558"]
[WhiteElo "2104"]
[BlackElo "1896"]
[Result "0-1"]
[Round "11"]
[TimeControl "180+1"]
[Date "2022.03.16"]
[WhiteClock "0:00:02"]
[BlackClock "0:00:37"]

1. d4 {[%clk 0:03:00]}  c5 {[%clk 0:02:58]} 2. d5 {[%clk 0:03:00]}  d6 {[%clk 0:02:58]} 3. e4 {[%clk 0:03:00]}  e6 {[%clk 0:02:58]} 4. Nc3 {[%clk 0:03:00]}  exd5 {[%clk 0:02:58]} 5. Nxd5 {[%clk 0:03:00]}  Nf6 {[%clk 0:02:59]} 6. Nf3 {[%clk 0:02:59]}  Nxd5 {[%clk 0:02:58]} 7. Qxd5 {[%clk 0:03:00]}  Nc6 {[%clk 0:02:57]} 8. Bc4 {[%clk 0:02:39]}  Be6 {[%clk 0:02:54]} 9. Qd3 {[%clk 0:02:39]}  Bxc4 {[%clk 0:02:54]} 10. Qxc4 {[%clk 0:02:40]}  Be7 {[%clk 0:02:54]} 11. O-O {[%clk 0:02:39]}  O-O {[%clk 0:02:54]} 12. Bf4 {[%clk 0:02:39]}  Qc8 {[%clk 0:02:49]} 13. Rad1 {[%clk 0:02:33]}  Rd8 {[%clk 0:02:48]} 14. Rfe1 {[%clk 0:02:27]}  Qe6 {[%clk 0:02:47]} 15. Qd5 {[%clk 0:02:03]}  h6 {[%clk 0:02:42]} 16. c3 {[%clk 0:02:02]}  Rac8 {[%clk 0:02:40]} 17. h3 {[%clk 0:01:59]}  Bf8 {[%clk 0:02:38]} 18. Re2 {[%clk 0:01:33]}  b5 {[%clk 0:02:34]} 19. Qxe6 {[%clk 0:01:25]}  fxe6 {[%clk 0:02:34]} 20. Red2 {[%clk 0:01:26]}  e5 {[%clk 0:02:32]} 21. Be3 {[%clk 0:01:24]}  Re8 {[%clk 0:02:27]} 22. Nh4 {[%clk 0:00:56]}  Nd8 {[%clk 0:02:17]} 23. Nf5 {[%clk 0:00:48]}  Nf7 {[%clk 0:02:17]} 24. g4 {[%clk 0:00:32]}  g6 {[%clk 0:02:16]} 25. Ng3 {[%clk 0:00:32]}  Kg7 {[%clk 0:02:15]} 26. Rd5 {[%clk 0:00:32]}  Rb8 {[%clk 0:02:09]} 27. Kg2 {[%clk 0:00:29]}  b4 {[%clk 0:02:09]} 28. c4 {[%clk 0:00:25]}  a5 {[%clk 0:02:08]} 29. f3 {[%clk 0:00:22]}  a4 {[%clk 0:02:07]} 30. h4 {[%clk 0:00:21]}  Nd8 {[%clk 0:01:57]} 31. h5 {[%clk 0:00:19]}  Nb7 {[%clk 0:01:48]} 32. hxg6 {[%clk 0:00:19]}  Kxg6 {[%clk 0:01:48]} 33. Nf5 {[%clk 0:00:18]}  b3 {[%clk 0:01:27]} 34. a3 {[%clk 0:00:16]}  Na5 {[%clk 0:01:26]} 35. Rc1 {[%clk 0:00:16]}  Re6 {[%clk 0:01:24]} 36. Rd2 {[%clk 0:00:13]}  Nc6 {[%clk 0:01:22]} 37. Kg3 {[%clk 0:00:12]}  Rd8 {[%clk 0:01:16]} 38. Rh1 {[%clk 0:00:12]}  Na5 {[%clk 0:01:13]} 39. Rc1 {[%clk 0:00:11]}  Bg7 {[%clk 0:01:12]} 40. Rh2 {[%clk 0:00:12]}  Rh8 {[%clk 0:01:07]} 41. Bd2 {[%clk 0:00:11]}  Nb7 {[%clk 0:01:06]} 42. Rch1 {[%clk 0:00:12]}  Nd8 {[%clk 0:00:53]} 43. Bxh6 {[%clk 0:00:11]}  Bxh6 {[%clk 0:00:48]} 44. Rxh6+ {[%clk 0:00:12]}  Rxh6 {[%clk 0:00:48]} 45. Rxh6+ {[%clk 0:00:13]}  Kf7 {[%clk 0:00:49]} 46. Rxe6 {[%clk 0:00:10]}  Kxe6 {[%clk 0:00:46]} 47. g5 {[%clk 0:00:10]}  Nc6 {[%clk 0:00:45]} 48. Kg4 {[%clk 0:00:09]}  Na5 {[%clk 0:00:44]} 49. Ne3 {[%clk 0:00:09]}  Kf7 {[%clk 0:00:42]} 50. Kf5 {[%clk 0:00:10]}  Nc6 {[%clk 0:00:40]} 51. g6+ {[%clk 0:00:09]}  Kg7 {[%clk 0:00:40]} 52. Ke6 {[%clk 0:00:09]}  Nd4+ {[%clk 0:00:40]} 53. Kxd6 {[%clk 0:00:09]}  Nxf3 {[%clk 0:00:41]} 54. Kxc5 {[%clk 0:00:09]}  Nd2 {[%clk 0:00:42]} 55. Kd5 {[%clk 0:00:08]}  Kxg6 {[%clk 0:00:42]} 56. c5 {[%clk 0:00:07]}  Kf7 {[%clk 0:00:42]} 57. Kxe5 {[%clk 0:00:04]}  Ke7 {[%clk 0:00:40]} 58. Kd5 {[%clk 0:00:04]}  Kd7 {[%clk 0:00:41]} 59. e5 {[%clk 0:00:04]}  Kc7 {[%clk 0:00:41]} 60. e6 {[%clk 0:00:05]}  Nf3 {[%clk 0:00:40]} 61. Nc4 {[%clk 0:00:04]}  Nh4 {[%clk 0:00:37]} 62. Nb6 {[%clk 0:00:03]}  Nf5 {[%clk 0:00:37]} 63. Nxa4 {[%clk 0:00:02]}  Ne3+ {[%clk 0:00:37]} 0-1


[Site "https://www.chess.com"]

[Event "Titled Tuesday Blitz March 15 Late 2022"]
[White "Mangialardo, Tiago Carvalho"]
[Black "Kostiukov, Alexandr"]
[WhiteFideId "2130718"]
[BlackFideId "14108100"]
[WhiteElo "2092"]
[BlackElo "2202"]
[Result "0-1"]
[Round "11"]
[TimeControl "180+1"]
[Date "2022.03.16"]
[WhiteClock "0:00:01"]
[BlackClock "0:00:07"]

1. e4 {[%clk 0:03:00]}  c5 {[%clk 0:02:52]} 2. Nf3 {[%clk 0:02:59]}  g6 {[%clk 0:02:52]} 3. d4 {[%clk 0:02:58]}  cxd4 {[%clk 0:02:52]} 4. Qxd4 {[%clk 0:02:59]}  Nf6 {[%clk 0:02:52]} 5. Qa4 {[%clk 0:02:59]}  Nc6 {[%clk 0:02:44]} 6. Nc3 {[%clk 0:02:57]}  Bg7 {[%clk 0:02:43]} 7. e5 {[%clk 0:02:50]}  Ng8 {[%clk 0:02:33]} 8. Bf4 {[%clk 0:02:49]}  f6 {[%clk 0:02:33]} 9. exf6 {[%clk 0:02:23]}  Nxf6 {[%clk 0:02:33]} 10. Bc4 {[%clk 0:02:15]}  d5 {[%clk 0:02:08]} 11. O-O-O {[%clk 0:02:11]}  e6 {[%clk 0:02:04]} 12. Nxd5 {[%clk 0:01:25]}  exd5 {[%clk 0:01:52]} 13. Rhe1+ {[%clk 0:01:19]}  Kf8 {[%clk 0:01:46]} 14. Bxd5 {[%clk 0:00:49]}  Nxd5 {[%clk 0:01:39]} 15. c4 {[%clk 0:00:49]}  Qf6 {[%clk 0:01:24]} 16. Qa3+ {[%clk 0:00:41]}  Ndb4 {[%clk 0:01:18]} 17. Bd6+ {[%clk 0:00:38]}  Kg8 {[%clk 0:01:01]} 18. Bxb4 {[%clk 0:00:18]}  Nxb4 {[%clk 0:01:02]} 19. Qxb4 {[%clk 0:00:10]}  Bf5 {[%clk 0:00:54]} 20. Qxb7 {[%clk 0:00:04]}  Rc8 {[%clk 0:00:41]} 21. Rd4 {[%clk 0:00:03]}  h5 {[%clk 0:00:26]} 22. h3 {[%clk 0:00:03]}  Kh7 {[%clk 0:00:26]} 23. g4 {[%clk 0:00:03]}  hxg4 {[%clk 0:00:10]} 24. hxg4 {[%clk 0:00:02]}  Be6 {[%clk 0:00:11]} 25. Rh1+ {[%clk 0:00:02]}  Kg8 {[%clk 0:00:11]} 26. Rxh8+ {[%clk 0:00:01]}  Kxh8 {[%clk 0:00:11]} 27. g5 {[%clk 0:00:01]}  Qxf3 {[%clk 0:00:07]} 0-1


[Site "https://www.chess.com"]

[Event "Titled Tuesday Blitz March 15 Late 2022"]
[White "Marson, Juan Miguel"]
[Black "Araujo Filho, Luiz Antonio Coel"]
[WhiteFideId "106585"]
[BlackFideId "2130661"]
[WhiteElo "2053"]
[BlackElo "2231"]
[Result "1-0"]
[Round "11"]
[TimeControl "180+1"]
[Date "2022.03.16"]
[WhiteClock "0:00:22"]
[BlackClock "0:00:24"]

1. e4 {[%clk 0:03:00]}  c6 {[%clk 0:03:00]} 2. d4 {[%clk 0:03:00]}  d5 {[%clk 0:03:00]} 3. e5 {[%clk 0:03:00]}  Bf5 {[%clk 0:02:59]} 4. h4 {[%clk 0:03:01]}  h5 {[%clk 0:02:58]} 5. c4 {[%clk 0:02:58]}  e6 {[%clk 0:02:58]} 6. Nc3 {[%clk 0:02:56]}  Nd7 {[%clk 0:02:57]} 7. cxd5 {[%clk 0:02:48]}  cxd5 {[%clk 0:02:46]} 8. Bg5 {[%clk 0:02:47]}  Qb6 {[%clk 0:02:45]} 9. Bb5 {[%clk 0:02:47]}  Ne7 {[%clk 0:02:20]} 10. Bxd7+ {[%clk 0:02:47]}  Kxd7 {[%clk 0:02:20]} 11. Nge2 {[%clk 0:02:34]}  Nc6 {[%clk 0:02:16]} 12. Qd2 {[%clk 0:02:30]}  Rc8 {[%clk 0:01:54]} 13. O-O {[%clk 0:02:30]}  Na5 {[%clk 0:01:53]} 14. Rfc1 {[%clk 0:02:24]}  Bb4 {[%clk 0:01:51]} 15. Qf4 {[%clk 0:02:12]}  Nc4 {[%clk 0:01:40]} 16. Nxd5 {[%clk 0:02:07]}  Qb5 {[%clk 0:01:21]} 17. Nxb4 {[%clk 0:02:01]}  Qxb4 {[%clk 0:01:21]} 18. d5 {[%clk 0:02:01]}  a5 {[%clk 0:00:59]} 19. dxe6+ {[%clk 0:01:56]}  fxe6 {[%clk 0:00:59]} 20. Qd4+ {[%clk 0:01:33]}  Ke8 {[%clk 0:00:56]} 21. Rd1 {[%clk 0:01:24]}  Kf7 {[%clk 0:00:39]} 22. Qd7+ {[%clk 0:01:21]}  Kg6 {[%clk 0:00:39]} 23. Nf4+ {[%clk 0:01:20]}  Kh7 {[%clk 0:00:39]} 24. Nxh5 {[%clk 0:01:14]}  Kg6 {[%clk 0:00:37]} 25. Nf4+ {[%clk 0:01:01]}  Kh7 {[%clk 0:00:37]} 26. Nd5 {[%clk 0:00:34]}  Qxb2 {[%clk 0:00:29]} 27. Nf6+ {[%clk 0:00:21]}  Kg6 {[%clk 0:00:29]} 28. h5+ {[%clk 0:00:21]}  Kxg5 {[%clk 0:00:29]} 29. Qxg7+ {[%clk 0:00:22]}  Kf4 {[%clk 0:00:24]} 30. Qg3# {[%clk 0:00:22]} 1-0


[Site "https://www.chess.com"]

[Event "Titled Tuesday Blitz March 15 Late 2022"]
[White "Matinian, Nikita"]
[Black "Roberson, Peter T"]
[WhiteFideId "24129100"]
[BlackFideId "412384"]
[WhiteElo "2422"]
[BlackElo "2346"]
[Result "1-0"]
[Round "11"]
[TimeControl "180+1"]
[Date "2022.03.15"]
[WhiteClock "0:02:04"]
[BlackClock "0:02:14"]

1. e4 {[%clk 0:03:00]}  e5 {[%clk 0:03:00]} 2. Bc4 {[%clk 0:02:59]}  Nf6 {[%clk 0:02:58]} 3. d3 {[%clk 0:03:00]}  Bc5 {[%clk 0:02:58]} 4. Nc3 {[%clk 0:03:00]}  O-O {[%clk 0:02:58]} 5. Bg5 {[%clk 0:02:58]}  h6 {[%clk 0:02:58]} 6. Bh4 {[%clk 0:02:58]}  Be7 {[%clk 0:02:59]} 7. Nge2 {[%clk 0:02:51]}  c6 {[%clk 0:02:59]} 8. Bb3 {[%clk 0:02:43]}  Na6 {[%clk 0:02:54]} 9. Rg1 {[%clk 0:02:41]}  Nc5 {[%clk 0:02:52]} 10. g4 {[%clk 0:02:41]}  Nh7 {[%clk 0:02:52]} 11. Bxe7 {[%clk 0:02:40]}  Qxe7 {[%clk 0:02:53]} 12. Ng3 {[%clk 0:02:36]}  d6 {[%clk 0:02:46]} 13. Nf5 {[%clk 0:02:36]}  Qf6 {[%clk 0:02:46]} 14. Qe2 {[%clk 0:02:28]}  a5 {[%clk 0:02:46]} 15. a4 {[%clk 0:02:28]}  Nxb3 {[%clk 0:02:46]} 16. cxb3 {[%clk 0:02:29]}  Ng5 {[%clk 0:02:40]} 17. h4 {[%clk 0:02:27]}  Nh3 {[%clk 0:02:41]} 18. Rh1 {[%clk 0:02:16]}  Nf4 {[%clk 0:02:41]} 19. Qf3 {[%clk 0:02:16]}  Qe6 {[%clk 0:02:29]} 20. g5 {[%clk 0:02:12]}  h5 {[%clk 0:02:24]} 21. Ne2 {[%clk 0:02:04]}  Qxb3 {[%clk 0:02:20]} 22. Nxf4 {[%clk 0:02:03]}  exf4 {[%clk 0:02:16]} 23. Ne7+ {[%clk 0:02:03]}  Kh8 {[%clk 0:02:14]} 24. Qxh5# {[%clk 0:02:04]} 1-0


[Site "https://www.chess.com"]

[Event "Titled Tuesday Blitz March 15 Late 2022"]
[White "Melkumyan, Hrant"]
[Black "Abdyzhapar, Asylbek"]
[WhiteFideId "13302485"]
[BlackFideId "13800337"]
[WhiteElo "2604"]
[BlackElo "2331"]
[Result "1-0"]
[Round "11"]
[TimeControl "180+1"]
[Date "2022.03.15"]
[WhiteClock "0:00:18"]
[BlackClock "0:00:04"]

1. d4 {[%clk 0:02:57]}  Nf6 {[%clk 0:02:59]} 2. c4 {[%clk 0:02:56]}  g6 {[%clk 0:03:00]} 3. Nc3 {[%clk 0:02:53]}  Bg7 {[%clk 0:02:59]} 4. e4 {[%clk 0:02:53]}  d6 {[%clk 0:02:59]} 5. f3 {[%clk 0:02:53]}  O-O {[%clk 0:02:58]} 6. Nge2 {[%clk 0:02:54]}  Nbd7 {[%clk 0:02:57]} 7. Be3 {[%clk 0:02:54]}  a6 {[%clk 0:02:56]} 8. Qd2 {[%clk 0:02:53]}  c5 {[%clk 0:02:56]} 9. Bh6 {[%clk 0:02:52]}  cxd4 {[%clk 0:02:54]} 10. Nxd4 {[%clk 0:02:51]}  Bxh6 {[%clk 0:02:51]} 11. Qxh6 {[%clk 0:02:51]}  Qb6 {[%clk 0:02:51]} 12. Qd2 {[%clk 0:02:51]}  Ne5 {[%clk 0:02:49]} 13. Rc1 {[%clk 0:02:49]}  h5 {[%clk 0:02:47]} 14. Be2 {[%clk 0:02:48]}  Bd7 {[%clk 0:02:46]} 15. b3 {[%clk 0:02:47]}  Rac8 {[%clk 0:02:43]} 16. f4 {[%clk 0:02:39]}  Nc6 {[%clk 0:02:43]} 17. Nf3 {[%clk 0:02:31]}  Ng4 {[%clk 0:02:40]} 18. Bd3 {[%clk 0:02:25]}  Nb4 {[%clk 0:02:27]} 19. Bb1 {[%clk 0:02:21]}  Be6 {[%clk 0:02:18]} 20. h3 {[%clk 0:02:14]}  Nf6 {[%clk 0:02:11]} 21. Ng5 {[%clk 0:02:12]}  a5 {[%clk 0:01:49]} 22. g4 {[%clk 0:02:02]}  h4 {[%clk 0:01:47]} 23. Qf2 {[%clk 0:01:57]}  Qxf2+ {[%clk 0:01:45]} 24. Kxf2 {[%clk 0:01:58]}  Bd7 {[%clk 0:01:39]} 25. Rhe1 {[%clk 0:01:57]}  e5 {[%clk 0:01:38]} 26. f5 {[%clk 0:01:54]}  Rfd8 {[%clk 0:01:30]} 27. Nf3 {[%clk 0:01:54]}  Rc5 {[%clk 0:01:23]} 28. Rcd1 {[%clk 0:01:50]}  Bc6 {[%clk 0:01:20]} 29. a3 {[%clk 0:01:47]}  Na6 {[%clk 0:01:18]} 30. Nxh4 {[%clk 0:01:44]}  gxf5 {[%clk 0:01:16]} 31. Nxf5 {[%clk 0:01:41]}  b5 {[%clk 0:01:10]} 32. Ne7+ {[%clk 0:01:33]}  Kg7 {[%clk 0:00:57]} 33. Nf5+ {[%clk 0:01:13]}  Kf8 {[%clk 0:00:50]} 34. Nxd6 {[%clk 0:01:14]}  bxc4 {[%clk 0:00:49]} 35. bxc4 {[%clk 0:01:04]}  Ne8 {[%clk 0:00:46]} 36. Nxe8 {[%clk 0:01:00]}  Rxd1 {[%clk 0:00:42]} 37. Nxd1 {[%clk 0:01:01]}  Bxe8 {[%clk 0:00:37]} 38. Ne3 {[%clk 0:01:02]}  Rc7 {[%clk 0:00:34]} 39. h4 {[%clk 0:00:52]}  Nc5 {[%clk 0:00:34]} 40. h5 {[%clk 0:00:51]}  Ne6 {[%clk 0:00:34]} 41. h6 {[%clk 0:00:50]}  Kg8 {[%clk 0:00:33]} 42. Nd5 {[%clk 0:00:47]}  Rxc4 {[%clk 0:00:30]} 43. Nf6+ {[%clk 0:00:47]}  Kf8 {[%clk 0:00:29]} 44. h7 {[%clk 0:00:44]}  Kg7 {[%clk 0:00:29]} 45. Rh1 {[%clk 0:00:43]}  Kh8 {[%clk 0:00:27]} 46. Nxe8 {[%clk 0:00:44]}  Rd4 {[%clk 0:00:21]} 47. Ke3 {[%clk 0:00:42]}  Nf4 {[%clk 0:00:20]} 48. Nf6 {[%clk 0:00:41]}  Ra4 {[%clk 0:00:16]} 49. Kd2 {[%clk 0:00:36]}  Rxa3 {[%clk 0:00:16]} 50. Nd5 {[%clk 0:00:36]}  Nh3 {[%clk 0:00:12]} 51. Rf1 {[%clk 0:00:31]}  Kxh7 {[%clk 0:00:11]} 52. Rxf7+ {[%clk 0:00:30]}  Kg6 {[%clk 0:00:12]} 53. Rf5 {[%clk 0:00:30]}  Ng5 {[%clk 0:00:10]} 54. Ne7+ {[%clk 0:00:28]}  Kh6 {[%clk 0:00:08]} 55. Ng8+ {[%clk 0:00:27]}  Kg6 {[%clk 0:00:08]} 56. Ne7+ {[%clk 0:00:28]}  Kh6 {[%clk 0:00:09]} 57. Nc6 {[%clk 0:00:29]}  Ne6 {[%clk 0:00:07]} 58. Nxe5 {[%clk 0:00:28]}  Nd4 {[%clk 0:00:07]} 59. g5+ {[%clk 0:00:27]}  Kg7 {[%clk 0:00:07]} 60. Rf7+ {[%clk 0:00:27]}  Kg8 {[%clk 0:00:08]} 61. Rd7 {[%clk 0:00:26]}  Ne6 {[%clk 0:00:06]} 62. Bd3 {[%clk 0:00:25]}  Nc5 {[%clk 0:00:05]} 63. Bc4+ {[%clk 0:00:25]}  Kf8 {[%clk 0:00:05]} 64. Rf7+ {[%clk 0:00:21]}  Ke8 {[%clk 0:00:04]} 65. Bb5+ {[%clk 0:00:22]}  Kd8 {[%clk 0:00:04]} 66. Nc6+ {[%clk 0:00:20]}  Ke8 {[%clk 0:00:03]} 67. Ne5+ {[%clk 0:00:18]}  Kd8 {[%clk 0:00:03]} 68. Kc2 {[%clk 0:00:17]}  Nxe4 {[%clk 0:00:03]} 69. Rd7+ {[%clk 0:00:17]}  Kc8 {[%clk 0:00:03]} 70. Ba6+ {[%clk 0:00:17]}  Kb8 {[%clk 0:00:04]} 71. Nc6+ {[%clk 0:00:18]} 1-0


[Site "https://www.chess.com"]

[Event "Titled Tuesday Blitz March 15 Late 2022"]
[White "Mohammadian, Mohammad"]
[Black "P., Komal Kishore"]
[WhiteFideId "12566055"]
[BlackFideId "5016703"]
[WhiteElo "1544"]
[BlackElo "2103"]
[Result "0-1"]
[Round "11"]
[TimeControl "180+1"]
[Date "2022.03.16"]
[WhiteClock "0:00:04"]
[BlackClock "0:00:57"]

1. e4 {[%clk 0:02:35]}  c6 {[%clk 0:02:58]} 2. d4 {[%clk 0:02:33]}  d5 {[%clk 0:02:54]} 3. Nd2 {[%clk 0:02:33]}  dxe4 {[%clk 0:02:53]} 4. Nxe4 {[%clk 0:02:32]}  Bf5 {[%clk 0:02:53]} 5. Ng3 {[%clk 0:02:32]}  Bg6 {[%clk 0:02:53]} 6. Nf3 {[%clk 0:02:32]}  Nd7 {[%clk 0:02:53]} 7. Bd3 {[%clk 0:02:31]}  e6 {[%clk 0:02:51]} 8. O-O {[%clk 0:02:30]}  Ngf6 {[%clk 0:02:50]} 9. Re1 {[%clk 0:02:30]}  Be7 {[%clk 0:02:49]} 10. c4 {[%clk 0:02:30]}  O-O {[%clk 0:02:48]} 11. Be3 {[%clk 0:02:25]}  Qb6 {[%clk 0:02:46]} 12. b3 {[%clk 0:02:23]}  Rfe8 {[%clk 0:02:42]} 13. Qc2 {[%clk 0:02:21]}  Bb4 {[%clk 0:02:36]} 14. Red1 {[%clk 0:02:11]}  Qc7 {[%clk 0:02:33]} 15. d5 {[%clk 0:02:05]}  cxd5 {[%clk 0:02:30]} 16. cxd5 {[%clk 0:02:03]}  Qxc2 {[%clk 0:02:29]} 17. Bxc2 {[%clk 0:01:59]}  Bxc2 {[%clk 0:02:30]} 18. Rdc1 {[%clk 0:01:56]}  Bc3 {[%clk 0:02:27]} 19. Bd4 {[%clk 0:01:49]}  Bxa1 {[%clk 0:02:25]} 20. Bxa1 {[%clk 0:01:45]}  Bg6 {[%clk 0:02:22]} 21. Rc7 {[%clk 0:01:45]}  exd5 {[%clk 0:02:16]} 22. Rxb7 {[%clk 0:01:42]}  Rac8 {[%clk 0:02:15]} 23. Bxf6 {[%clk 0:01:27]}  Rc1+ {[%clk 0:02:09]} 24. Nf1 {[%clk 0:01:25]}  Bd3 {[%clk 0:02:02]} 25. Nd2 {[%clk 0:01:25]}  Ree1 {[%clk 0:01:53]} 26. h3 {[%clk 0:01:00]}  Bxf1 {[%clk 0:01:49]} 27. Nxf1 {[%clk 0:00:47]}  Rxf1+ {[%clk 0:01:48]} 28. Kh2 {[%clk 0:00:47]}  gxf6 {[%clk 0:01:42]} 29. Rxd7 {[%clk 0:00:45]}  Rxf2 {[%clk 0:01:39]} 30. Rxd5 {[%clk 0:00:44]}  Rxa2 {[%clk 0:01:36]} 31. h4 {[%clk 0:00:39]}  Rcc2 {[%clk 0:01:35]} 32. Rd8+ {[%clk 0:00:37]}  Kg7 {[%clk 0:01:34]} 33. h5 {[%clk 0:00:38]}  Rxg2+ {[%clk 0:01:33]} 34. Kh3 {[%clk 0:00:37]}  Rh2+ {[%clk 0:01:31]} 35. Kg3 {[%clk 0:00:37]}  Rag2+ {[%clk 0:01:30]} 36. Kf3 {[%clk 0:00:37]}  Rb2 {[%clk 0:01:27]} 37. Kg3 {[%clk 0:00:36]}  Rxh5 {[%clk 0:01:26]} 38. Rd3 {[%clk 0:00:31]}  Rb5 {[%clk 0:01:22]} 39. Kf4 {[%clk 0:00:25]}  R2xb3 {[%clk 0:01:20]} 40. Rg3+ {[%clk 0:00:18]}  Kf8 {[%clk 0:01:16]} 41. Rg1 {[%clk 0:00:12]}  Ra3 {[%clk 0:01:11]} 42. Re1 {[%clk 0:00:07]}  Ra4+ {[%clk 0:01:09]} 43. Kf3 {[%clk 0:00:05]}  Rb3+ {[%clk 0:01:08]} 44. Kf2 {[%clk 0:00:05]}  Ra2+ {[%clk 0:01:06]} 45. Kf1 {[%clk 0:00:05]}  Rbb2 {[%clk 0:01:02]} 46. Kg1 {[%clk 0:00:04]}  Rg2+ {[%clk 0:00:57]} 0-1


[Site "https://www.chess.com"]

[Event "Titled Tuesday Blitz March 15 Late 2022"]
[White "Plazuelo Pascual, Juan"]
[Black "Sadilek, Peter"]
[WhiteFideId "32059566"]
[BlackFideId "1616439"]
[WhiteElo "2364"]
[BlackElo "2145"]
[Result "0-1"]
[Round "11"]
[TimeControl "180+1"]
[Date "2022.03.16"]
[WhiteClock "0:00:33"]
[BlackClock "0:00:12"]

1. Nf3 {[%clk 0:03:00]}  Nf6 {[%clk 0:02:57]} 2. g3 {[%clk 0:03:00]}  e6 {[%clk 0:02:57]} 3. Bg2 {[%clk 0:03:01]}  d5 {[%clk 0:02:58]} 4. O-O {[%clk 0:03:01]}  Be7 {[%clk 0:02:59]} 5. c4 {[%clk 0:03:01]}  O-O {[%clk 0:02:59]} 6. b3 {[%clk 0:03:01]}  b6 {[%clk 0:02:57]} 7. Bb2 {[%clk 0:03:00]}  Bb7 {[%clk 0:02:58]} 8. e3 {[%clk 0:03:01]}  c5 {[%clk 0:02:57]} 9. cxd5 {[%clk 0:03:01]}  Nxd5 {[%clk 0:02:56]} 10. Nc3 {[%clk 0:02:56]}  Nc6 {[%clk 0:02:55]} 11. Nxd5 {[%clk 0:02:32]}  Qxd5 {[%clk 0:02:55]} 12. d4 {[%clk 0:02:32]}  Rad8 {[%clk 0:02:54]} 13. dxc5 {[%clk 0:02:24]}  Qxc5 {[%clk 0:02:49]} 14. Qe2 {[%clk 0:02:21]}  Nb4 {[%clk 0:02:30]} 15. a3 {[%clk 0:02:04]}  Nd3 {[%clk 0:02:23]} 16. Bd4 {[%clk 0:02:02]}  Qh5 {[%clk 0:02:17]} 17. Rfd1 {[%clk 0:01:50]}  e5 {[%clk 0:02:03]} 18. Rxd3 {[%clk 0:01:49]}  e4 {[%clk 0:01:52]} 19. Rd2 {[%clk 0:01:19]}  exf3 {[%clk 0:01:52]} 20. Qd1 {[%clk 0:01:20]}  Qf5 {[%clk 0:01:25]} 21. Bf1 {[%clk 0:01:19]}  h5 {[%clk 0:01:18]} 22. Qc2 {[%clk 0:01:18]}  Be4 {[%clk 0:01:13]} 23. Qb2 {[%clk 0:01:18]}  h4 {[%clk 0:01:05]} 24. Rad1 {[%clk 0:01:13]}  hxg3 {[%clk 0:01:05]} 25. hxg3 {[%clk 0:01:11]}  Qg6 {[%clk 0:00:37]} 26. Bc3 {[%clk 0:01:07]}  Rxd2 {[%clk 0:00:35]} 27. Rxd2 {[%clk 0:01:07]}  Bh4 {[%clk 0:00:35]} 28. Be5 {[%clk 0:01:06]}  Re8 {[%clk 0:00:30]} 29. Qd4 {[%clk 0:01:02]}  Be7 {[%clk 0:00:26]} 30. Bc7 {[%clk 0:00:58]}  Bc5 {[%clk 0:00:21]} 31. Qd7 {[%clk 0:00:55]}  Bc6 {[%clk 0:00:21]} 32. Qd3 {[%clk 0:00:52]}  Qxd3 {[%clk 0:00:19]} 33. Bxd3 {[%clk 0:00:46]}  Bxa3 {[%clk 0:00:19]} 34. Ra2 {[%clk 0:00:46]}  Bc5 {[%clk 0:00:19]} 35. Rxa7 {[%clk 0:00:44]}  g6 {[%clk 0:00:13]} 36. g4 {[%clk 0:00:34]}  Re7 {[%clk 0:00:13]} 37. Kh2 {[%clk 0:00:33]}  Bd6+ {[%clk 0:00:12]} 38. Bxd6 {[%clk 0:00:33]}  Rxa7 {[%clk 0:00:12]} 39. Kg3 {[%clk 0:00:33]}  Rd7 {[%clk 0:00:12]} 0-1


[Site "https://www.chess.com"]